[Event "*** Titled Tuesday Blitz"]
[Site "Chess.com"]
[Date "2021.02.02"]
[Round "5"]
[White "amatatanav"]
[Black "Aygehovit1992"]
[Result "1-0"]
[WhiteElo "2455"]
[BlackElo "2607"]
[TimeControl "180+1"]
[EndTime "10:59:35 PST"]
[Termination "amatatanav won by resignation"]

1. e4 {[%clk 0:03:00.9]} 1... c5 {[%clk 0:01:43.7]} 2. Ne2 {[%clk 0:02:59.1]}
2... g6 {[%clk 0:01:35.3]} 3. d4 {[%clk 0:02:58.5]} 3... cxd4 {[%clk 0:01:35.1]}
4. Nxd4 {[%clk 0:02:59.4]} 4... Bg7 {[%clk 0:01:35]} 5. Nc3 {[%clk 0:02:58.7]}
5... Nc6 {[%clk 0:01:35.6]} 6. Be3 {[%clk 0:02:58.4]} 6... d6 {[%clk 0:01:34.5]}
7. Qd2 {[%clk 0:02:57.1]} 7... Nf6 {[%clk 0:01:34.5]} 8. f3 {[%clk 0:02:57.5]}
8... Bd7 {[%clk 0:01:34.2]} 9. g4 {[%clk 0:02:49.6]} 9... Rc8 {[%clk 0:01:33.1]}
10. h4 {[%clk 0:02:40.2]} 10... Ne5 {[%clk 0:01:30.8]} 11. h5 {[%clk 0:02:27.3]}
11... Qa5 {[%clk 0:01:26.2]} 12. h6 {[%clk 0:02:05.6]} 12... Bf8 {[%clk
0:01:22.9]} 13. a3 {[%clk 0:02:00.6]} 13... e6 {[%clk 0:01:14.6]} 14. O-O-O
{[%clk 0:01:56.2]} 14... d5 {[%clk 0:01:12.5]} 15. Nb3 {[%clk 0:01:22.6]} 15...
Qc7 {[%clk 0:00:52.2]} 16. exd5 {[%clk 0:01:00.4]} 16... Bxa3 {[%clk 0:00:46.3]}
17. Nb5 {[%clk 0:00:55.6]} 17... Bxb5 {[%clk 0:00:18]} 18. Bxb5+ {[%clk
0:00:56.5]} 18... Kf8 {[%clk 0:00:18.3]} 19. bxa3 {[%clk 0:00:54.3]} 19... Nxd5
{[%clk 0:00:18.2]} 20. Bc5+ {[%clk 0:00:48.8]} 20... Kg8 {[%clk 0:00:16.4]} 21.
Be2 {[%clk 0:00:20.7]} 21... f6 {[%clk 0:00:11.2]} 22. Bd4 {[%clk 0:00:19.9]}
22... Nc4 {[%clk 0:00:08.4]} 23. Bxc4 {[%clk 0:00:19.4]} 23... Qxc4 {[%clk
0:00:09.3]} 24. Kb1 {[%clk 0:00:17.4]} 24... Kf7 {[%clk 0:00:09.2]} 25. Bb2
{[%clk 0:00:17.4]} 25... Rhd8 {[%clk 0:00:08.7]} 26. Qf2 {[%clk 0:00:08.8]}
26... b6 {[%clk 0:00:06.8]} 27. Rd3 {[%clk 0:00:08.2]} 27... e5 {[%clk
0:00:06.4]} 28. Rhd1 {[%clk 0:00:08]} 28... Ke7 {[%clk 0:00:04.4]} 29. Qd2
{[%clk 0:00:07.6]} 29... Nc3+ {[%clk 0:00:02.5]} 30. Bxc3 {[%clk 0:00:06.8]}
30... Rxd3 {[%clk 0:00:02.3]} 31. Qxd3 {[%clk 0:00:06.3]} 31... Qxc3 {[%clk
0:00:02.4]} 32. Qxc3 {[%clk 0:00:05.6]} 32... Rxc3 {[%clk 0:00:02.1]} 33. Rd3
{[%clk 0:00:06.3]} 33... Rxd3 {[%clk 0:00:02.1]} 34. cxd3 {[%clk 0:00:06.5]}
34... Kd6 {[%clk 0:00:03]} 35. Kc2 {[%clk 0:00:06.5]} 35... Kd5 {[%clk
0:00:03.9]} 36. Kc3 {[%clk 0:00:06.8]} 36... a5 {[%clk 0:00:03.8]} 37. a4 {[%clk
0:00:06.4]} 37... f5 {[%clk 0:00:03.6]} 38. gxf5 {[%clk 0:00:06]} 38... gxf5
{[%clk 0:00:04.5]} 39. Nd2 {[%clk 0:00:06.2]} 39... Kc5 {[%clk 0:00:04.7]} 40.
Nc4 {[%clk 0:00:06]} 40... b5 {[%clk 0:00:03.3]} 41. axb5 {[%clk 0:00:06]} 41...
Kxb5 {[%clk 0:00:04.2]} 42. Nxe5 {[%clk 0:00:06.4]} 42... a4 {[%clk 0:00:05.1]}
43. Nf7 {[%clk 0:00:06.2]} 43... a3 {[%clk 0:00:05.2]} 44. Kb3 {[%clk
0:00:06.7]} 44... Kc5 {[%clk 0:00:05.5]} 45. Kxa3 {[%clk 0:00:06.8]} 45... Kd4
{[%clk 0:00:06.4]} 46. Ng5 {[%clk 0:00:06.9]} 46... Kxd3 {[%clk 0:00:07.3]} 47.
Nxh7 {[%clk 0:00:07.2]} 47... Ke3 {[%clk 0:00:07.7]} 48. Ng5 {[%clk 0:00:07.2]}
48... Kf4 {[%clk 0:00:06.3]} 49. h7 {[%clk 0:00:07.1]} 49... Kxg5 {[%clk
0:00:07.2]} 50. h8=Q {[%clk 0:00:07.5]} 50... Kf4 {[%clk 0:00:08.1]} 51. Qh3
{[%clk 0:00:07.3]} 51... Ke3 {[%clk 0:00:07.8]} 52. Kb3 {[%clk 0:00:08]} 52...
f4 {[%clk 0:00:08.7]} 53. Kc4 {[%clk 0:00:07.7]} 53... Kf2 {[%clk 0:00:09.6]}
54. Kd4 {[%clk 0:00:08.1]} 1-0

[Event "*** Titled Tuesday Blitz"]
[Site "Chess.com"]
[Date "2021.02.02"]
[Round "5"]
[White "serhanberat_ozdemir"]
[Black "Matols"]
[Result "1-0"]
[WhiteElo "2423"]
[BlackElo "2268"]
[TimeControl "180+1"]
[EndTime "10:59:35 PST"]
[Termination "serhanberat_ozdemir won on time"]

1. e4 {[%clk 0:03:00.9]} 1... e6 {[%clk 0:02:59.9]} 2. d4 {[%clk 0:02:54.4]}
2... d5 {[%clk 0:02:59.8]} 3. Nd2 {[%clk 0:02:55.1]} 3... c5 {[%clk 0:02:58.8]}
4. Ngf3 {[%clk 0:02:54.7]} 4... cxd4 {[%clk 0:02:57.9]} 5. Nxd4 {[%clk
0:02:55.6]} 5... Nf6 {[%clk 0:02:54.4]} 6. exd5 {[%clk 0:02:50.8]} 6... Qxd5
{[%clk 0:02:49.7]} 7. N2f3 {[%clk 0:02:49.2]} 7... a6 {[%clk 0:02:48.4]} 8. Be2
{[%clk 0:02:40.8]} 8... Bc5 {[%clk 0:02:43.9]} 9. O-O {[%clk 0:02:39.4]} 9...
O-O {[%clk 0:02:43]} 10. Be3 {[%clk 0:02:32.2]} 10... b5 {[%clk 0:02:28]} 11. a4
{[%clk 0:02:23.3]} 11... b4 {[%clk 0:02:20.9]} 12. c4 {[%clk 0:02:21.8]} 12...
bxc3 {[%clk 0:02:19.3]} 13. bxc3 {[%clk 0:02:22]} 13... Nbd7 {[%clk 0:02:14.5]}
14. Rb1 {[%clk 0:02:08.1]} 14... e5 {[%clk 0:01:48.2]} 15. Nf5 {[%clk
0:01:59.3]} 15... e4 {[%clk 0:01:20.1]} 16. N3d4 {[%clk 0:01:28.2]} 16... Re8
{[%clk 0:01:06.8]} 17. c4 {[%clk 0:01:23.9]} 17... Qe5 {[%clk 0:01:03.3]} 18. a5
{[%clk 0:01:06.7]} 18... g6 {[%clk 0:00:51.4]} 19. Ng3 {[%clk 0:00:55.7]} 19...
Nf8 {[%clk 0:00:40.7]} 20. Nc6 {[%clk 0:00:50.3]} 20... Qd6 {[%clk 0:00:31.8]}
21. Qxd6 {[%clk 0:00:48.5]} 21... Bxd6 {[%clk 0:00:31.5]} 22. c5 {[%clk
0:00:47.8]} 22... Bc7 {[%clk 0:00:30.1]} 23. Nd4 {[%clk 0:00:30.9]} 23... Bxa5
{[%clk 0:00:28.8]} 24. c6 {[%clk 0:00:31.1]} 24... Bc7 {[%clk 0:00:27.2]} 25.
Bc4 {[%clk 0:00:30.7]} 25... Ne6 {[%clk 0:00:25.9]} 26. Rfd1 {[%clk 0:00:30.3]}
26... Kg7 {[%clk 0:00:23.9]} 27. h3 {[%clk 0:00:26.3]} 27... h5 {[%clk
0:00:21.1]} 28. Nge2 {[%clk 0:00:26.8]} 28... h4 {[%clk 0:00:20.8]} 29. Bg5
{[%clk 0:00:26.3]} 29... Nh5 {[%clk 0:00:19.6]} 30. Bxh4 {[%clk 0:00:25]} 30...
a5 {[%clk 0:00:19]} 31. Nc3 {[%clk 0:00:17.3]} 31... a4 {[%clk 0:00:18.8]} 32.
Nd5 {[%clk 0:00:17.2]} 32... Be5 {[%clk 0:00:16.2]} 33. Nb5 {[%clk 0:00:10.7]}
33... a3 {[%clk 0:00:14.7]} 34. Ba2 {[%clk 0:00:10.3]} 34... Ba6 {[%clk
0:00:13.6]} 35. g4 {[%clk 0:00:07.6]} 35... Nhf4 {[%clk 0:00:12.2]} 36. Nxf4
{[%clk 0:00:04.1]} 36... Nxf4 {[%clk 0:00:12.2]} 37. Bg3 {[%clk 0:00:02.9]}
37... Nxh3+ {[%clk 0:00:11.2]} 38. Kg2 {[%clk 0:00:03.1]} 38... Bxg3 {[%clk
0:00:10.6]} 39. Kxg3 {[%clk 0:00:04]} 39... Ng5 {[%clk 0:00:10.5]} 40. Rd7
{[%clk 0:00:02.9]} 40... Rac8 {[%clk 0:00:08.2]} 41. Rd5 {[%clk 0:00:03.1]}
41... Ne6 {[%clk 0:00:06.4]} 42. Rd6 {[%clk 0:00:03.6]} 42... Re7 {[%clk
0:00:04.7]} 43. Nc3 {[%clk 0:00:02.9]} 43... Bd3 {[%clk 0:00:03.7]} 44. Nd5
{[%clk 0:00:03.2]} 44... Ree8 {[%clk 0:00:03]} 45. Rd7 {[%clk 0:00:03.8]} 45...
Rxc6 {[%clk 0:00:02.2]} 46. Nf4 {[%clk 0:00:04.3]} 46... Nxf4 {[%clk 0:00:01.9]}
47. Rxf7+ {[%clk 0:00:05]} 1-0

[Event "*** Titled Tuesday Blitz"]
[Site "Chess.com"]
[Date "2021.02.02"]
[Round "5"]
[White "RaneshRatnesan"]
[Black "A-S-00"]
[Result "1-0"]
[WhiteElo "2182"]
[BlackElo "2322"]
[TimeControl "180+1"]
[EndTime "10:59:35 PST"]
[Termination "RaneshRatnesan won by resignation"]

1. d4 {[%clk 0:03:00.9]} 1... Nf6 {[%clk 0:02:58.9]} 2. Nf3 {[%clk 0:03:01.1]}
2... g6 {[%clk 0:02:58.8]} 3. Bf4 {[%clk 0:03:00.6]} 3... Bg7 {[%clk 0:02:59.7]}
4. e3 {[%clk 0:02:57.9]} 4... d6 {[%clk 0:03:00.2]} 5. Bd3 {[%clk 0:02:58.5]}
5... O-O {[%clk 0:03:00.6]} 6. c3 {[%clk 0:02:59]} 6... Nbd7 {[%clk 0:03:01]} 7.
Bg3 {[%clk 0:02:59.7]} 7... Nh5 {[%clk 0:02:58]} 8. Nbd2 {[%clk 0:02:55.1]} 8...
e5 {[%clk 0:02:54.2]} 9. Qc2 {[%clk 0:02:54]} 9... f5 {[%clk 0:02:22.2]} 10. Bh4
{[%clk 0:02:30.4]} 10... Qe8 {[%clk 0:02:18.6]} 11. dxe5 {[%clk 0:02:19.5]}
11... dxe5 {[%clk 0:02:17.7]} 12. e4 {[%clk 0:02:19.8]} 12... Nf4 {[%clk
0:02:09.1]} 13. Bc4+ {[%clk 0:02:18]} 13... Kh8 {[%clk 0:02:07.4]} 14. O-O
{[%clk 0:02:11.5]} 14... c6 {[%clk 0:01:58.6]} 15. Rae1 {[%clk 0:01:54.8]} 15...
b5 {[%clk 0:01:54.9]} 16. Bb3 {[%clk 0:01:54.3]} 16... Nc5 {[%clk 0:01:54.3]}
17. Qb1 {[%clk 0:01:34]} 17... a5 {[%clk 0:01:19]} 18. Bc2 {[%clk 0:01:33.1]}
18... b4 {[%clk 0:01:18.9]} 19. exf5 {[%clk 0:01:22]} 19... gxf5 {[%clk
0:01:18.3]} 20. Bg3 {[%clk 0:01:12.4]} 20... Qh5 {[%clk 0:00:46.9]} 21. Nxe5
{[%clk 0:01:05.7]} 21... Ne2+ {[%clk 0:00:39.6]} 22. Kh1 {[%clk 0:00:52.7]}
22... Ba6 {[%clk 0:00:38.3]} 23. c4 {[%clk 0:00:50.2]} 23... Rad8 {[%clk
0:00:30]} 24. Qd1 {[%clk 0:00:37.2]} 24... Nxg3+ {[%clk 0:00:22.1]} 25. fxg3
{[%clk 0:00:38.1]} 25... Qxd1 {[%clk 0:00:22.5]} 26. Rxd1 {[%clk 0:00:30.1]}
26... Bxe5 {[%clk 0:00:22.1]} 27. b3 {[%clk 0:00:31]} 27... Bc8 {[%clk
0:00:16.5]} 28. Nf3 {[%clk 0:00:26.8]} 28... Bc3 {[%clk 0:00:15.5]} 29. Nh4
{[%clk 0:00:23.3]} 29... Kg7 {[%clk 0:00:13.2]} 30. Nxf5+ {[%clk 0:00:19]} 30...
Bxf5 {[%clk 0:00:12.8]} 31. Rxd8 {[%clk 0:00:17.3]} 31... Rxd8 {[%clk
0:00:12.4]} 32. Rxf5 {[%clk 0:00:15.1]} 32... Rd2 {[%clk 0:00:11.9]} 33. Rxc5
{[%clk 0:00:15.2]} 33... Rxc2 {[%clk 0:00:11.6]} 34. h4 {[%clk 0:00:15.7]} 34...
Rxa2 {[%clk 0:00:08.1]} 35. Rxc6 {[%clk 0:00:15.8]} 35... Rb2 {[%clk 0:00:08.2]}
36. Rc5 {[%clk 0:00:13.1]} 36... Rxb3 {[%clk 0:00:07.5]} 37. Rxa5 {[%clk
0:00:14]} 37... Rb1+ {[%clk 0:00:07.4]} 38. Kh2 {[%clk 0:00:13.6]} 38... b3
{[%clk 0:00:08.1]} 39. Rb5 {[%clk 0:00:14.5]} 39... b2 {[%clk 0:00:07.8]} 40. c5
{[%clk 0:00:14.6]} 40... Rc1 {[%clk 0:00:07.7]} 41. c6 {[%clk 0:00:11.7]} 41...
b1=Q {[%clk 0:00:07.7]} 42. Rxb1 {[%clk 0:00:09.6]} 42... Rxb1 {[%clk
0:00:07.7]} 43. c7 {[%clk 0:00:10.5]} 43... Be5 {[%clk 0:00:03.7]} 44. c8=Q
{[%clk 0:00:10.3]} 44... Rb3 {[%clk 0:00:03.3]} 45. Qd7+ {[%clk 0:00:08.6]}
45... Kf8 {[%clk 0:00:03.5]} 46. Qf5+ {[%clk 0:00:06.1]} 46... Kg8 {[%clk
0:00:03]} 47. Qxe5 {[%clk 0:00:06.5]} 1-0

[Event "*** Titled Tuesday Blitz"]
[Site "Chess.com"]
[Date "2021.02.02"]
[Round "5"]
[White "kagg1125"]
[Black "SaraciNderim"]
[Result "0-1"]
[WhiteElo "2585"]
[BlackElo "2822"]
[TimeControl "180+1"]
[EndTime "10:59:36 PST"]
[Termination "SaraciNderim won by resignation"]

1. e4 {[%clk 0:03:00.9]} 1... e5 {[%clk 0:02:59.3]} 2. Nf3 {[%clk 0:03:00.6]}
2... Nc6 {[%clk 0:02:59.5]} 3. Bc4 {[%clk 0:03:01]} 3... Bc5 {[%clk 0:02:58.8]}
4. c3 {[%clk 0:03:00.6]} 4... Nf6 {[%clk 0:02:58.8]} 5. d4 {[%clk 0:02:58.9]}
5... exd4 {[%clk 0:02:58.9]} 6. e5 {[%clk 0:02:59.8]} 6... d5 {[%clk 0:02:55.2]}
7. Bb5 {[%clk 0:03:00.1]} 7... Ne4 {[%clk 0:02:54.7]} 8. cxd4 {[%clk 0:03:00.6]}
8... Bb6 {[%clk 0:02:45.8]} 9. Nc3 {[%clk 0:03:00.4]} 9... O-O {[%clk
0:02:43.8]} 10. Be3 {[%clk 0:02:58.9]} 10... Bg4 {[%clk 0:02:42.6]} 11. h3
{[%clk 0:02:57.1]} 11... Bh5 {[%clk 0:02:34.4]} 12. Qc2 {[%clk 0:02:57.1]} 12...
Bg6 {[%clk 0:02:28.8]} 13. Qb3 {[%clk 0:02:57]} 13... Ne7 {[%clk 0:02:18.1]} 14.
Nh4 {[%clk 0:02:14.8]} 14... Nxc3 {[%clk 0:01:27.5]} 15. bxc3 {[%clk 0:02:13.5]}
15... Be4 {[%clk 0:01:21.4]} 16. Qd1 {[%clk 0:01:40.4]} 16... c6 {[%clk
0:01:11]} 17. Be2 {[%clk 0:01:33.9]} 17... Ba5 {[%clk 0:01:03.2]} 18. Bd2 {[%clk
0:01:28.6]} 18... Nc8 {[%clk 0:00:51.5]} 19. Nf3 {[%clk 0:01:27.5]} 19... Nb6
{[%clk 0:00:50.8]} 20. O-O {[%clk 0:01:27]} 20... Nc4 {[%clk 0:00:38.9]} 21. Ng5
{[%clk 0:01:19.7]} 21... Nxd2 {[%clk 0:00:28.2]} 22. Qxd2 {[%clk 0:01:18.6]}
22... Bf5 {[%clk 0:00:28.5]} 23. f4 {[%clk 0:01:16.6]} 23... f6 {[%clk 0:00:18]}
24. Nf3 {[%clk 0:01:16.4]} 24... Be4 {[%clk 0:00:17.9]} 25. Bd3 {[%clk 0:01:11]}
25... Bb6 {[%clk 0:00:15.9]} 26. Qe3 {[%clk 0:01:08.9]} 26... fxe5 {[%clk
0:00:15.9]} 27. Nxe5 {[%clk 0:01:06.6]} 27... Bxd3 {[%clk 0:00:15.3]} 28. Qxd3
{[%clk 0:01:07.5]} 28... Qd6 {[%clk 0:00:12.6]} 29. a4 {[%clk 0:01:02.6]} 29...
c5 {[%clk 0:00:10]} 30. a5 {[%clk 0:01:00.7]} 30... Bd8 {[%clk 0:00:10]} 31.
Rab1 {[%clk 0:00:59.4]} 31... cxd4 {[%clk 0:00:10]} 32. cxd4 {[%clk 0:00:58]}
32... Bxa5 {[%clk 0:00:10]} 33. Rxb7 {[%clk 0:00:56.9]} 33... Bb6 {[%clk
0:00:10.4]} 34. Qg3 {[%clk 0:00:55.3]} 34... Bxd4+ {[%clk 0:00:08.7]} 35. Kh2
{[%clk 0:00:51.5]} 35... Qf6 {[%clk 0:00:07.5]} 36. Nd7 {[%clk 0:00:40.4]} 36...
Qf7 {[%clk 0:00:07.6]} 37. Rd1 {[%clk 0:00:27.9]} 37... Bb6 {[%clk 0:00:06.3]}
38. Nxf8 {[%clk 0:00:20.7]} 38... Qxb7 {[%clk 0:00:05.6]} 39. Ne6 {[%clk
0:00:21.1]} 39... Qf7 {[%clk 0:00:05.4]} 40. Ng5 {[%clk 0:00:21]} 40... Qd7
{[%clk 0:00:05.1]} 41. Qd3 {[%clk 0:00:20]} 41... g6 {[%clk 0:00:05.3]} 42. Qb3
{[%clk 0:00:17.9]} 42... Rd8 {[%clk 0:00:05]} 43. Nf3 {[%clk 0:00:17.6]} 43...
Qf5 {[%clk 0:00:05]} 44. Qa4 {[%clk 0:00:12.2]} 44... Qe4 {[%clk 0:00:04.1]} 45.
Qxe4 {[%clk 0:00:08.7]} 45... dxe4 {[%clk 0:00:05]} 46. Rxd8+ {[%clk 0:00:09.3]}
46... Bxd8 {[%clk 0:00:05.2]} 47. Nd2 {[%clk 0:00:10.2]} 47... e3 {[%clk
0:00:04.8]} 48. Nc4 {[%clk 0:00:10.7]} 48... e2 {[%clk 0:00:05]} 0-1

[Event "*** Titled Tuesday Blitz"]
[Site "Chess.com"]
[Date "2021.02.02"]
[Round "5"]
[White "Yaryi_sergey"]
[Black "MariaFominykh"]
[Result "1-0"]
[WhiteElo "2470"]
[BlackElo "2274"]
[TimeControl "180+1"]
[EndTime "10:59:36 PST"]
[Termination "Yaryi_sergey won on time"]

1. e4 {[%clk 0:03:00.9]} 1... d6 {[%clk 0:02:55.5]} 2. Nc3 {[%clk 0:02:59.8]}
2... Nf6 {[%clk 0:02:55]} 3. g3 {[%clk 0:02:59.2]} 3... g6 {[%clk 0:02:54.5]} 4.
Bg2 {[%clk 0:02:59.3]} 4... Bg7 {[%clk 0:02:54.6]} 5. Nge2 {[%clk 0:02:59.5]}
5... O-O {[%clk 0:02:53.4]} 6. d3 {[%clk 0:02:57.8]} 6... c5 {[%clk 0:02:46.5]}
7. h3 {[%clk 0:02:55.2]} 7... Nc6 {[%clk 0:02:46.4]} 8. O-O {[%clk 0:02:54.2]}
8... Rb8 {[%clk 0:02:45.1]} 9. a4 {[%clk 0:02:53.1]} 9... a6 {[%clk 0:02:43.2]}
10. Be3 {[%clk 0:02:53]} 10... b5 {[%clk 0:02:38.5]} 11. axb5 {[%clk 0:02:52.9]}
11... axb5 {[%clk 0:02:38]} 12. Qd2 {[%clk 0:02:53.6]} 12... Re8 {[%clk
0:02:15.2]} 13. Nd5 {[%clk 0:02:52.1]} 13... Nxd5 {[%clk 0:02:09.6]} 14. exd5
{[%clk 0:02:51.4]} 14... Ne5 {[%clk 0:01:58.2]} 15. f4 {[%clk 0:02:47.3]} 15...
Nd7 {[%clk 0:01:56.9]} 16. c3 {[%clk 0:02:26.7]} 16... Nf6 {[%clk 0:01:48.6]}
17. Rab1 {[%clk 0:02:24.3]} 17... e6 {[%clk 0:01:16.8]} 18. dxe6 {[%clk
0:02:18.5]} 18... Bxe6 {[%clk 0:01:17.7]} 19. Bf2 {[%clk 0:02:16.8]} 19... Qd7
{[%clk 0:01:11.3]} 20. Kh2 {[%clk 0:02:16]} 20... Bd5 {[%clk 0:01:10.2]} 21.
Bxd5 {[%clk 0:02:00.8]} 21... Nxd5 {[%clk 0:01:11.1]} 22. Rfe1 {[%clk
0:02:00.9]} 22... Re7 {[%clk 0:01:09.5]} 23. Ng1 {[%clk 0:01:59.8]} 23... b4
{[%clk 0:01:01.1]} 24. Rxe7 {[%clk 0:01:49.1]} 24... Nxe7 {[%clk 0:00:57.1]} 25.
c4 {[%clk 0:01:46.3]} 25... Nf5 {[%clk 0:00:50.7]} 26. b3 {[%clk 0:01:39.9]}
26... Re8 {[%clk 0:00:43]} 27. Re1 {[%clk 0:01:38.2]} 27... Bc3 {[%clk
0:00:41.2]} 28. Rxe8+ {[%clk 0:01:36]} 28... Qxe8 {[%clk 0:00:42.1]} 29. Qe2
{[%clk 0:01:34.6]} 29... Qa8 {[%clk 0:00:32.4]} 30. g4 {[%clk 0:01:25.8]} 30...
Nd4 {[%clk 0:00:30.7]} 31. Bxd4 {[%clk 0:01:24.4]} 31... Bxd4 {[%clk 0:00:31.6]}
32. Nf3 {[%clk 0:01:23.9]} 32... Qa1 {[%clk 0:00:17.7]} 33. Nxd4 {[%clk
0:01:22.1]} 33... Qxd4 {[%clk 0:00:18.4]} 34. Kg3 {[%clk 0:01:20]} 34... Kg7
{[%clk 0:00:18.9]} 35. g5 {[%clk 0:01:14.7]} 35... Qc3 {[%clk 0:00:17.7]} 36.
Qd1 {[%clk 0:01:13.4]} 36... h6 {[%clk 0:00:17.3]} 37. h4 {[%clk 0:01:12.6]}
37... h5 {[%clk 0:00:15.5]} 38. Kf2 {[%clk 0:01:05]} 38... Qd4+ {[%clk
0:00:14.2]} 39. Kf3 {[%clk 0:01:01.9]} 39... d5 {[%clk 0:00:14.3]} 40. Qe2
{[%clk 0:00:54.8]} 40... dxc4 {[%clk 0:00:11.7]} 41. dxc4 {[%clk 0:00:53.5]}
41... Kf8 {[%clk 0:00:06.9]} 42. Qe3 {[%clk 0:00:47.2]} 42... Qd1+ {[%clk
0:00:06.3]} 43. Ke4 {[%clk 0:00:42]} 43... Qd6 {[%clk 0:00:06.4]} 44. Kf3 {[%clk
0:00:34.9]} 44... Qc6+ {[%clk 0:00:06.2]} 45. Qe4 {[%clk 0:00:33.7]} 45... Qd6
{[%clk 0:00:06.6]} 46. Ke2 {[%clk 0:00:18.2]} 46... Qd7 {[%clk 0:00:04.8]} 47.
Qe5 {[%clk 0:00:15.4]} 47... Qg4+ {[%clk 0:00:03.3]} 48. Kd2 {[%clk 0:00:15.2]}
48... Qxh4 {[%clk 0:00:02.4]} 49. Qxc5+ {[%clk 0:00:14.6]} 49... Kg8 {[%clk
0:00:02.1]} 50. Qxb4 {[%clk 0:00:12.5]} 50... Qxf4+ {[%clk 0:00:02.5]} 51. Kc2
{[%clk 0:00:12.9]} 51... h4 {[%clk 0:00:02.6]} 52. Qc3 {[%clk 0:00:12.6]} 1-0

[Event "*** Titled Tuesday Blitz"]
[Site "Chess.com"]
[Date "2021.02.02"]
[Round "5"]
[White "erdni1993"]
[Black "Sharpchess22"]
[Result "1-0"]
[WhiteElo "2464"]
[BlackElo "2680"]
[TimeControl "180+1"]
[EndTime "10:59:37 PST"]
[Termination "erdni1993 won by resignation"]

1. e4 {[%clk 0:02:32.9]} 1... e5 {[%clk 0:02:57.7]} 2. Nf3 {[%clk 0:02:32.9]}
2... Nc6 {[%clk 0:02:57.7]} 3. Bb5 {[%clk 0:02:32.2]} 3... a6 {[%clk 0:02:56.2]}
4. Ba4 {[%clk 0:02:31.5]} 4... Bc5 {[%clk 0:02:55]} 5. O-O {[%clk 0:02:31.3]}
5... Nge7 {[%clk 0:02:55.1]} 6. c3 {[%clk 0:02:30.6]} 6... Ba7 {[%clk
0:02:53.7]} 7. d4 {[%clk 0:02:26.6]} 7... exd4 {[%clk 0:02:53.6]} 8. Nxd4 {[%clk
0:02:24.8]} 8... O-O {[%clk 0:02:49.6]} 9. Be3 {[%clk 0:02:19.3]} 9... Ne5
{[%clk 0:02:39.7]} 10. Nd2 {[%clk 0:02:13.7]} 10... d5 {[%clk 0:02:38.9]} 11.
Bc2 {[%clk 0:02:09.9]} 11... Bg4 {[%clk 0:02:22]} 12. f3 {[%clk 0:01:58]} 12...
Bd7 {[%clk 0:02:18.5]} 13. Re1 {[%clk 0:01:52.2]} 13... dxe4 {[%clk 0:02:08.2]}
14. Nxe4 {[%clk 0:01:45.6]} 14... N7g6 {[%clk 0:01:58.4]} 15. b3 {[%clk
0:01:27.7]} 15... Re8 {[%clk 0:01:56.4]} 16. Qd2 {[%clk 0:01:25.9]} 16... Qe7
{[%clk 0:01:40.1]} 17. Rad1 {[%clk 0:01:24.9]} 17... Rad8 {[%clk 0:01:38.1]} 18.
Qf2 {[%clk 0:01:17.3]} 18... c5 {[%clk 0:01:32.4]} 19. Ne2 {[%clk 0:01:14]}
19... Bf5 {[%clk 0:01:21.7]} 20. N2g3 {[%clk 0:01:09.3]} 20... Bxe4 {[%clk
0:01:21.8]} 21. Nxe4 {[%clk 0:01:10.2]} 21... b6 {[%clk 0:01:20.3]} 22. Rxd8
{[%clk 0:01:03.5]} 22... Rxd8 {[%clk 0:01:20.1]} 23. Ng3 {[%clk 0:00:59.3]}
23... Bb8 {[%clk 0:01:17.1]} 24. Nf5 {[%clk 0:00:53.2]} 24... Qc7 {[%clk
0:01:16.3]} 25. Qg3 {[%clk 0:00:49.8]} 25... Qb7 {[%clk 0:01:09.7]} 26. Qh3
{[%clk 0:00:32.9]} 26... f6 {[%clk 0:00:59.1]} 27. Be4 {[%clk 0:00:32]} 27...
Qd7 {[%clk 0:00:59.2]} 28. Kf2 {[%clk 0:00:20.7]} 28... Nd3+ {[%clk 0:00:57.4]}
29. Bxd3 {[%clk 0:00:20.4]} 29... Qxd3 {[%clk 0:00:57.5]} 30. Qg4 {[%clk
0:00:19.6]} 30... Qxc3 {[%clk 0:00:51.3]} 31. Re2 {[%clk 0:00:19.4]} 31... Be5
{[%clk 0:00:47.8]} 32. h4 {[%clk 0:00:19.2]} 32... Qb4 {[%clk 0:00:34.6]} 33.
Qxb4 {[%clk 0:00:17.8]} 33... cxb4 {[%clk 0:00:34.5]} 34. Bxb6 {[%clk
0:00:18.7]} 34... Rc8 {[%clk 0:00:32.6]} 35. g3 {[%clk 0:00:17.6]} 35... Rb8
{[%clk 0:00:26.7]} 36. Bc5 {[%clk 0:00:17.4]} 36... a5 {[%clk 0:00:25.4]} 37. f4
{[%clk 0:00:17]} 37... Bc3 {[%clk 0:00:25.6]} 38. Ne7+ {[%clk 0:00:16.4]} 38...
Nxe7 {[%clk 0:00:23.8]} 39. Rxe7 {[%clk 0:00:17.3]} 39... f5 {[%clk 0:00:20.3]}
40. Kf3 {[%clk 0:00:16.3]} 40... Ra8 {[%clk 0:00:19]} 41. Bd6 {[%clk 0:00:16.2]}
41... a4 {[%clk 0:00:18.9]} 42. Be5 {[%clk 0:00:16.1]} 42... Bxe5 {[%clk
0:00:17.9]} 43. fxe5 {[%clk 0:00:17]} 43... axb3 {[%clk 0:00:18.2]} 44. axb3
{[%clk 0:00:17.9]} 44... Ra3 {[%clk 0:00:18]} 45. Kf4 {[%clk 0:00:17.4]} 45...
Rxb3 {[%clk 0:00:17.9]} 46. Rb7 {[%clk 0:00:18]} 46... g6 {[%clk 0:00:16.7]} 47.
e6 {[%clk 0:00:17.8]} 47... h6 {[%clk 0:00:12.7]} 48. Ke5 {[%clk 0:00:17.8]}
48... Rxg3 {[%clk 0:00:10.2]} 49. Kf6 {[%clk 0:00:17.9]} 49... f4 {[%clk
0:00:08.7]} 50. e7 {[%clk 0:00:17.5]} 50... Re3 {[%clk 0:00:09.1]} 51. Rxb4
{[%clk 0:00:17.4]} 51... Kh7 {[%clk 0:00:07.9]} 52. Rxf4 {[%clk 0:00:17]} 52...
g5 {[%clk 0:00:07.4]} 53. hxg5 {[%clk 0:00:16.5]} 53... hxg5 {[%clk 0:00:07.9]}
54. Rf1 {[%clk 0:00:16.8]} 54... g4 {[%clk 0:00:07.4]} 55. Kf7 {[%clk
0:00:16.9]} 55... g3 {[%clk 0:00:07.4]} 56. e8=Q {[%clk 0:00:17.1]} 56... Rxe8
{[%clk 0:00:07.6]} 57. Kxe8 {[%clk 0:00:18]} 57... Kg6 {[%clk 0:00:08.1]} 58.
Rg1 {[%clk 0:00:18.7]} 58... Kf5 {[%clk 0:00:08.7]} 59. Rxg3 {[%clk 0:00:19.3]}
59... Kf4 {[%clk 0:00:09.3]} 60. Ra3 {[%clk 0:00:19.9]} 1-0